[Event "FIDE Grand Swiss 2023"]
[Site "Villa Marina, Douglas, Isle of Man"]
[Date "2023.10.29"]
[Round "5.22"]
[White "Rapport, Richard"]
[Black "Svane, Rasmus"]
[Result "1-0"]
[WhiteElo "2752"]
[BlackElo "2646"]
[EventDate "2023.10.25"]
[ECO "C54"]
[PlyCount "91"]
[BlackFideId "4657101"]
[TimeControl "40/100 + 20/50 + 15 + 30s/move"]
[WhiteFideId "738590"]

1.e4 {[%clk 01:40:12] [%emt 00:00:47]} 1...e5 {[%clk 01:40:52] [%emt 00:00:08]} 
2.Nf3 {[%clk 01:39:56] [%emt 00:00:45]} 2...Nc6 {[%clk 01:41:17] [%emt
00:00:06]} 3.Bc4 {[%clk 01:39:55] [%emt 00:00:30]} 3...Nf6 {[%clk 01:41:26]
[%emt 00:00:22]} 4.d3 {[%clk 01:40:16] [%emt 00:00:09]} 4...Bc5 {[%clk 01:41:51]
[%emt 00:00:05]} 5.c3 {[%clk 01:40:06] [%emt 00:00:40]} 5...d6 {[%clk 01:41:47]
[%emt 00:00:34]} 6.O-O {[%clk 01:40:18] [%emt 00:00:18]} 6...h6 {[%clk 01:38:41]
[%emt 00:03:37]} 7.Re1 {[%clk 01:39:31] [%emt 00:01:16]} 7...O-O {[%clk
01:39:04] [%emt 00:00:08]} 8.Nbd2 {[%clk 01:39:31] [%emt 00:00:29]} 8...Bb6 
{[%clk 01:39:31] [%emt 00:00:03]} 9.Bb3 {[%clk 01:39:14] [%emt 00:00:47]} 
9...a5 {[%clk 01:35:12] [%emt 00:04:49]} 10.h3 {[%clk 01:32:53] [%emt 00:06:50]} 
10...Be6 {[%clk 01:33:21] [%emt 00:02:23]} 11.Bc2 {[%clk 01:32:00] [%emt
00:01:21]} 11...Re8 {[%clk 01:28:37] [%emt 00:05:15]} 12.Nc4 {[%clk 01:24:23]
[%emt 00:08:07]} 12...Ba7 {[%clk 01:16:11] [%emt 00:12:57]} 13.Ne3 {[%clk
01:21:18] [%emt 00:03:34]} 13...Bxe3 {[%clk 01:13:18] [%emt 00:03:24]} 14.Rxe3 
{[%clk 01:01:12] [%emt 00:20:35]} 14...d5 {[%clk 01:10:29] [%emt 00:03:19]} 
15.exd5 {[%clk 01:00:37] [%emt 00:01:05]} 15...Nxd5 {[%clk 01:04:01] [%emt
00:06:59]} 16.Re1 {[%clk 00:54:23] [%emt 00:06:44]} 16...Bf5 {[%clk 01:04:25]
[%emt 00:00:05]} 17.Nd2 {[%clk 00:53:17] [%emt 00:01:37]} 17...Bg6 {[%clk
00:45:47] [%emt 00:19:08]} 18.Qf3 {[%clk 00:49:29] [%emt 00:04:17]} 18...a4 
{[%clk 00:41:48] [%emt 00:04:30]} 19.Ne4 {[%clk 00:47:23] [%emt 00:02:35]} 
19...b6 {[%clk 00:33:08] [%emt 00:09:11]} 20.b4 {[%clk 00:44:34] [%emt
00:03:18]} 20...f5 {[%clk 00:26:28] [%emt 00:07:10]} 21.Ng3 {[%clk 00:42:31]
[%emt 00:02:33]} 21...Qd7 {[%clk 00:23:16] [%emt 00:03:43]} 22.Bd2 {[%clk
00:32:20] [%emt 00:10:40]} 22...Nf6 {[%clk 00:21:17] [%emt 00:02:29]} 23.b5 
{[%clk 00:27:40] [%emt 00:05:10]} 23...Na5 {[%clk 00:18:51] [%emt 00:02:56]} 
24.Rxe5 {[%clk 00:27:55] [%emt 00:00:15]} 24...Rxe5 {[%clk 00:18:04] [%emt
00:01:18]} 25.Qxa8+ {[%clk 00:28:19] [%emt 00:00:06]} 25...Re8 {[%clk 00:18:29]
[%emt 00:00:05]} 26.Qf3 {[%clk 00:28:17] [%emt 00:00:31]} 26...Qxb5 {[%clk
00:16:27] [%emt 00:02:33]} 27.Rb1 {[%clk 00:23:22] [%emt 00:05:25]} 27...Qd7 
{[%clk 00:16:47] [%emt 00:00:09]} 28.Qf4 {[%clk 00:22:31] [%emt 00:01:21]} 
28...Rd8 {[%clk 00:12:19] [%emt 00:04:58]} 29.c4 {[%clk 00:19:59] [%emt
00:03:02]} 29...Nc6 {[%clk 00:07:41] [%emt 00:05:09]} 30.Bc3 {[%clk 00:18:46]
[%emt 00:01:43]} 30...Qd6 {[%clk 00:07:22] [%emt 00:00:49]} 31.Ne2 {[%clk
00:18:06] [%emt 00:01:10]} 31...Qxf4 {[%clk 00:04:43] [%emt 00:03:09]} 32.Nxf4 
{[%clk 00:18:28] [%emt 00:00:07]} 32...Bf7 {[%clk 00:04:54] [%emt 00:00:19]} 
33.Bxa4 {[%clk 00:14:51] [%emt 00:04:09]} 33...Nd4 {[%clk 00:05:17] [%emt
00:00:05]} 34.Bd1 {[%clk 00:15:03] [%emt 00:00:17]} 34...g5 {[%clk 00:03:57]
[%emt 00:01:52]} 35.Ne2 {[%clk 00:15:05] [%emt 00:00:28]} 35...Nxe2+ {[%clk
00:04:20] [%emt 00:00:07]} 36.Bxe2 {[%clk 00:15:32] [%emt 00:00:02]} 36...Nd7 
{[%clk 00:04:39] [%emt 00:00:11]} 37.d4 {[%clk 00:07:35] [%emt 00:08:28]} 
37...Ra8 {[%clk 00:03:38] [%emt 00:01:30]} 38.Rb2 {[%clk 00:07:00] [%emt
00:01:05]} 38...c6 {[%clk 00:01:29] [%emt 00:02:40]} 39.Bd3 {[%clk 00:06:09]
[%emt 00:01:21]} 39...Ra3 {[%clk 00:00:49] [%emt 00:01:10]} 40.Rb3 {[%clk
00:05:58] [%emt 00:00:41]} 40...Rxa2 {[%clk 00:00:35] [%emt 00:00:43]} 41.Bxf5 
{[%clk 00:05:47] [%emt 00:00:41]} 41...Ra7 {[%clk 00:48:45] [%emt 00:02:21]} 
42.Bxd7 {[%clk 00:54:43] [%emt 00:01:34]} 42...Rxd7 {[%clk 00:49:09] [%emt
00:00:05]} 43.Rxb6 {[%clk 00:55:08] [%emt 00:00:06]} 43...Rc7 {[%clk 00:49:06]
[%emt 00:00:33]} 44.d5 {[%clk 00:55:07] [%emt 00:00:30]} 44...cxd5 {[%clk
00:48:09] [%emt 00:01:27]} 45.Rxh6 {[%clk 00:55:29] [%emt 00:00:07]} 45...Kf8 
{[%clk 00:48:31] [%emt 00:00:09]} 46.c5 {[%clk 00:54:30] [%emt 00:01:29]} 1-0

[Event "FIDE Grand Swiss 2023"]
[Site "Villa Marina, Douglas, Isle of Man"]
[Date "2023.10.29"]
[Round "5.23"]
[White "Pichot, Alan"]
[Black "Aronian, Levon"]
[Result "1/2-1/2"]
[WhiteElo "2650"]
[BlackElo "2742"]
[EventDate "2023.10.25"]
[ECO "C65"]
[PlyCount "93"]
[BlackFideId "13300474"]
[TimeControl "40/100 + 20/50 + 15 + 30s/move"]
[WhiteFideId "110973"]

1.e4 {[%clk 01:40:54] [%emt 00:00:05]} 1...e5 {[%clk 01:40:57] [%emt 00:00:04]} 
2.Nf3 {[%clk 01:41:17] [%emt 00:00:07]} 2...Nc6 {[%clk 01:41:22] [%emt
00:00:04]} 3.Bb5 {[%clk 01:41:36] [%emt 00:00:11]} 3...Nf6 {[%clk 01:41:46]
[%emt 00:00:06]} 4.d3 {[%clk 01:41:50] [%emt 00:00:16]} 4...Bc5 {[%clk 01:42:10]
[%emt 00:00:06]} 5.O-O {[%clk 01:42:00] [%emt 00:00:20]} 5...Nd4 {[%clk
01:42:19] [%emt 00:00:22]} 6.Nxd4 {[%clk 01:42:16] [%emt 00:00:14]} 6...Bxd4 
{[%clk 01:42:42] [%emt 00:00:06]} 7.c3 {[%clk 01:42:24] [%emt 00:00:22]} 
7...Bb6 {[%clk 01:43:08] [%emt 00:00:05]} 8.Na3 {[%clk 01:42:27] [%emt
00:00:27]} 8...c6 {[%clk 01:43:21] [%emt 00:00:17]} 9.Ba4 {[%clk 01:42:49] [%emt
00:00:08]} 9...d6 {[%clk 01:43:40] [%emt 00:00:11]} 10.Bc2 {[%clk 01:40:54]
[%emt 00:02:25]} 10...Bg4 {[%clk 01:37:08] [%emt 00:07:02]} 11.Qe1 {[%clk
01:40:53] [%emt 00:00:31]} 11...Be6 {[%clk 01:36:13] [%emt 00:01:24]} 12.Nc4 
{[%clk 01:32:40] [%emt 00:08:43]} 12...Bc7 {[%clk 01:35:23] [%emt 00:01:21]} 
13.f4 {[%clk 01:30:46] [%emt 00:02:23]} 13...b5 {[%clk 01:20:45] [%emt
00:15:09]} 14.fxe5 {[%clk 01:13:58] [%emt 00:17:19]} 14...dxe5 {[%clk 01:20:23]
[%emt 00:00:51]} 15.Ne3 {[%clk 01:07:35] [%emt 00:06:53]} 15...g6 {[%clk
01:20:28] [%emt 00:00:25]} 16.a4 {[%clk 01:03:07] [%emt 00:04:57]} 16...O-O 
{[%clk 01:17:11] [%emt 00:03:47]} 17.axb5 {[%clk 01:03:02] [%emt 00:00:36]} 
17...cxb5 {[%clk 01:17:37] [%emt 00:00:03]} 18.Qh4 {[%clk 00:52:02] [%emt
00:11:30]} 18...Nh5 {[%clk 01:14:43] [%emt 00:03:24]} 19.Nf5 {[%clk 00:41:54]
[%emt 00:10:38]} 19...Qxh4 {[%clk 01:03:59] [%emt 00:11:14]} 20.Nxh4 {[%clk
00:42:18] [%emt 00:00:06]} 20...Bb6+ {[%clk 01:04:11] [%emt 00:00:18]} 21.Kh1 
{[%clk 00:42:41] [%emt 00:00:07]} 21...f6 {[%clk 01:04:04] [%emt 00:00:38]} 
22.Nf3 {[%clk 00:41:27] [%emt 00:01:43]} 22...Rfd8 {[%clk 01:00:26] [%emt
00:04:08]} 23.Re1 {[%clk 00:29:10] [%emt 00:12:47]} 23...b4 {[%clk 00:53:29]
[%emt 00:07:28]} 24.d4 {[%clk 00:23:53] [%emt 00:05:46]} 24...bxc3 {[%clk
00:44:49] [%emt 00:09:11]} 25.dxe5 {[%clk 00:20:01] [%emt 00:04:22]} 25...Rac8 
{[%clk 00:45:13] [%emt 00:00:05]} 26.bxc3 {[%clk 00:20:21] [%emt 00:00:11]} 
26...Rxc3 {[%clk 00:45:36] [%emt 00:00:07]} 27.Bb1 {[%clk 00:20:15] [%emt
00:00:36]} 27...Bg4 {[%clk 00:40:24] [%emt 00:05:41]} 28.Ra3 {[%clk 00:17:45]
[%emt 00:03:01]} 28...Rxa3 {[%clk 00:36:49] [%emt 00:04:04]} 29.Bxa3 {[%clk
00:18:09] [%emt 00:00:07]} 29...Bxf3 {[%clk 00:36:01] [%emt 00:01:18]} 30.exf6 
{[%clk 00:16:25] [%emt 00:02:14]} 30...Bxg2+ {[%clk 00:23:38] [%emt 00:12:53]} 
31.Kxg2 {[%clk 00:16:49] [%emt 00:00:05]} 31...Rd2+ {[%clk 00:23:55] [%emt
00:00:13]} 32.Kh3 {[%clk 00:15:46] [%emt 00:01:33]} 32...Nf4+ {[%clk 00:22:25]
[%emt 00:02:00]} 33.Kg4 {[%clk 00:09:15] [%emt 00:07:02]} 33...Ne6 {[%clk
00:22:26] [%emt 00:00:28]} 34.e5 {[%clk 00:08:17] [%emt 00:01:28]} 34...Kf7 
{[%clk 00:19:12] [%emt 00:03:45]} 35.h4 {[%clk 00:05:38] [%emt 00:03:09]} 
35...Bf2 {[%clk 00:02:55] [%emt 00:16:46]} 36.Rh1 {[%clk 00:03:07] [%emt
00:03:02]} 36...Bd4 {[%clk 00:00:33] [%emt 00:02:53]} 37.h5 {[%clk 00:01:50]
[%emt 00:01:47]} 37...Bxe5 {[%clk 00:00:57] [%emt 00:00:06]} 38.hxg6+ {[%clk
00:02:15] [%emt 00:00:05]} 38...hxg6 {[%clk 00:01:24] [%emt 00:00:03]} 39.Rh7+ 
{[%clk 00:02:34] [%emt 00:00:11]} 39...Kg8 {[%clk 00:01:51] [%emt 00:00:03]} 
40.Bxg6 {[%clk 00:00:51] [%emt 00:02:12]} 40...Rg2+ {[%clk 00:00:55] [%emt
00:01:26]} 41.Kf5 {[%clk 00:49:20] [%emt 00:02:02]} 41...Rg5+ {[%clk 00:51:21]
[%emt 00:00:03]} 42.Kxe6 {[%clk 00:49:37] [%emt 00:00:14]} 42...Rxg6 {[%clk
00:51:49] [%emt 00:00:02]} 43.Kxe5 {[%clk 00:48:59] [%emt 00:01:08]} 43...Kxh7 
{[%clk 00:52:15] [%emt 00:00:04]} 44.f7 {[%clk 00:49:17] [%emt 00:00:11]} 
44...Rg8 {[%clk 00:52:41] [%emt 00:00:04]} 45.fxg8=Q+ {[%clk 00:49:38] [%emt
00:00:10]} 45...Kxg8 {[%clk 00:53:04] [%emt 00:00:06]} 46.Bc5 {[%clk 00:50:05]
[%emt 00:00:03]} 46...Kf7 {[%clk 00:53:25] [%emt 00:00:09]} 47.Bxa7 {[%clk
00:50:33] [%emt 00:00:02]} 1/2-1/2

[Event "FIDE Grand Swiss 2023"]
[Site "Villa Marina, Douglas, Isle of Man"]
[Date "2023.10.29"]
[Round "5.24"]
[White "Praggnanandhaa, R"]
[Black "Mareco, Sandro"]
[Result "1/2-1/2"]
[WhiteElo "2738"]
[BlackElo "2606"]
[EventDate "2023.10.25"]
[ECO "C53"]
[PlyCount "88"]
[BlackFideId "112275"]
[TimeControl "40/100 + 20/50 + 15 + 30s/move"]
[WhiteFideId "25059530"]

1.e4 {[%clk 01:40:09] [%emt 00:00:50]} 1...e5 {[%clk 01:40:55] [%emt 00:00:06]} 
2.Nf3 {[%clk 01:40:34] [%emt 00:00:05]} 2...Nc6 {[%clk 01:41:23] [%emt
00:00:03]} 3.Bc4 {[%clk 01:40:57] [%emt 00:00:06]} 3...Bc5 {[%clk 01:41:46]
[%emt 00:00:08]} 4.c3 {[%clk 01:41:09] [%emt 00:00:18]} 4...Nf6 {[%clk 01:42:11]
[%emt 00:00:04]} 5.d3 {[%clk 01:41:35] [%emt 00:00:04]} 5...a5 {[%clk 01:42:24]
[%emt 00:00:17]} 6.Bg5 {[%clk 01:41:44] [%emt 00:00:20]} 6...h6 {[%clk 01:42:49]
[%emt 00:00:06]} 7.Bh4 {[%clk 01:42:07] [%emt 00:00:07]} 7...d6 {[%clk 01:43:16]
[%emt 00:00:03]} 8.Nbd2 {[%clk 01:42:28] [%emt 00:00:09]} 8...Bd7 {[%clk
01:43:22] [%emt 00:00:24]} 9.Qe2 {[%clk 01:38:18] [%emt 00:04:39]} 9...Ba7 
{[%clk 01:24:28] [%emt 00:19:25]} 10.O-O-O {[%clk 01:38:21] [%emt 00:00:26]} 
10...Ne7 {[%clk 01:17:10] [%emt 00:07:49]} 11.Bxf6 {[%clk 01:25:56] [%emt
00:12:54]} 11...gxf6 {[%clk 01:17:00] [%emt 00:00:41]} 12.d4 {[%clk 01:18:45]
[%emt 00:07:41]} 12...Ng6 {[%clk 01:14:23] [%emt 00:03:07]} 13.g3 {[%clk
01:14:21] [%emt 00:04:54]} 13...Rb8 {[%clk 01:11:05] [%emt 00:03:48]} 14.a4 
{[%clk 01:07:40] [%emt 00:07:11]} 14...Kf8 {[%clk 01:10:21] [%emt 00:01:14]} 
15.Rdf1 {[%clk 00:49:37] [%emt 00:18:32]} 15...Rh7 {[%clk 00:56:55] [%emt
00:13:57]} 16.Bb3 {[%clk 00:37:10] [%emt 00:12:57]} 16...Qe8 {[%clk 00:56:34]
[%emt 00:00:50]} 17.dxe5 {[%clk 00:31:18] [%emt 00:06:22]} 17...fxe5 {[%clk
00:55:04] [%emt 00:02:00]} 18.Nh4 {[%clk 00:30:14] [%emt 00:01:34]} 18...Nxh4 
{[%clk 00:45:05] [%emt 00:10:30]} 19.gxh4 {[%clk 00:30:36] [%emt 00:00:08]} 
19...Bxa4 {[%clk 00:45:29] [%emt 00:00:06]} 20.Bxa4 {[%clk 00:30:35] [%emt
00:00:30]} 20...Qxa4 {[%clk 00:45:54] [%emt 00:00:05]} 21.Rhg1 {[%clk 00:29:55]
[%emt 00:01:10]} 21...Qd7 {[%clk 00:40:19] [%emt 00:06:05]} 22.Rg3 {[%clk
00:28:40] [%emt 00:01:44]} 22...Rg7 {[%clk 00:39:57] [%emt 00:00:53]} 23.f4 
{[%clk 00:23:46] [%emt 00:05:24]} 23...exf4 {[%clk 00:22:35] [%emt 00:17:51]} 
24.Rxg7 {[%clk 00:21:47] [%emt 00:02:30]} 24...Kxg7 {[%clk 00:23:00] [%emt
00:00:05]} 25.Rxf4 {[%clk 00:22:15] [%emt 00:00:01]} 25...Re8 {[%clk 00:08:26]
[%emt 00:15:05]} 26.Nf1 {[%clk 00:20:09] [%emt 00:02:36]} 26...Kf8 {[%clk
00:06:21] [%emt 00:02:34]} 27.Ng3 {[%clk 00:17:12] [%emt 00:03:27]} 27...d5 
{[%clk 00:06:00] [%emt 00:00:52]} 28.Qd2 {[%clk 00:13:37] [%emt 00:04:04]} 
28...Qc6 {[%clk 00:02:38] [%emt 00:03:52]} 29.exd5 {[%clk 00:11:51] [%emt
00:02:16]} 29...Qb6 {[%clk 00:02:51] [%emt 00:00:17]} 30.Kc2 {[%clk 00:08:43]
[%emt 00:03:39]} 30...Qe3 {[%clk 00:03:06] [%emt 00:00:15]} 31.Qxe3 {[%clk
00:07:25] [%emt 00:01:47]} 31...Bxe3 {[%clk 00:03:21] [%emt 00:00:15]} 32.Rf3 
{[%clk 00:05:57] [%emt 00:01:59]} 32...Bg1 {[%clk 00:03:36] [%emt 00:00:15]} 
33.h3 {[%clk 00:04:42] [%emt 00:01:45]} 33...Re3 {[%clk 00:02:24] [%emt
00:01:42]} 34.Rxe3 {[%clk 00:04:46] [%emt 00:00:26]} 34...Bxe3 {[%clk 00:02:50]
[%emt 00:00:04]} 35.Nf5 {[%clk 00:04:20] [%emt 00:00:55]} 35...Bf4 {[%clk
00:03:11] [%emt 00:00:09]} 36.h5 {[%clk 00:04:39] [%emt 00:00:12]} 36...a4 
{[%clk 00:02:46] [%emt 00:00:55]} 37.c4 {[%clk 00:03:12] [%emt 00:01:57]} 
37...Ke8 {[%clk 00:01:33] [%emt 00:01:42]} 38.Kc3 {[%clk 00:01:56] [%emt
00:01:46]} 38...Be5+ {[%clk 00:01:57] [%emt 00:00:05]} 39.Kb4 {[%clk 00:02:14]
[%emt 00:00:12]} 39...Bxb2 {[%clk 00:02:16] [%emt 00:00:11]} 40.Kxa4 {[%clk
00:02:08] [%emt 00:00:36]} 40...Bc1 {[%clk 00:02:08] [%emt 00:00:38]} 41.Kb5 
{[%clk 00:01:37] [%emt 00:01:01]} 41...Kd7 {[%clk 00:02:17] [%emt 00:00:22]} 
42.Kc5 {[%clk 00:47:35] [%emt 00:04:31]} 42...Bd2 {[%clk 00:44:06] [%emt
00:08:41]} 43.Kb5 {[%clk 00:43:32] [%emt 00:04:33]} 43...Bc1 {[%clk 00:42:53]
[%emt 00:01:43]} 44.Kc5 {[%clk 00:43:38] [%emt 00:00:25]} 44...Bd2 {[%clk
00:43:19] [%emt 00:00:04]} 1/2-1/2

[Event "FIDE Grand Swiss 2023"]
[Site "Villa Marina, Douglas, Isle of Man"]
[Date "2023.10.29"]
[Round "5.25"]
[White "Saric, Ivan"]
[Black "Vachier-Lagrave, Maxime"]
[Result "1-0"]
[WhiteElo "2647"]
[BlackElo "2727"]
[EventDate "2023.10.25"]
[ECO "B90"]
[PlyCount "107"]
[BlackFideId "623539"]
[TimeControl "40/100 + 20/50 + 15 + 30s/move"]
[WhiteFideId "14508150"]

1.e4 {[%clk 01:40:58]} 1...c5 {[%clk 01:40:57] [%emt 00:00:03]} 2.Nf3 {[%clk
01:41:23] [%emt 00:00:05]} 2...d6 {[%clk 01:41:26] [%emt 00:00:02]} 3.d4 {[%clk
01:41:45] [%emt 00:00:07]} 3...cxd4 {[%clk 01:41:53] [%emt 00:00:03]} 4.Nxd4 
{[%clk 01:42:11] [%emt 00:00:04]} 4...Nf6 {[%clk 01:42:19] [%emt 00:00:04]} 
5.Nc3 {[%clk 01:42:37] [%emt 00:00:05]} 5...a6 {[%clk 01:42:47] [%emt 00:00:02]} 
6.Be3 {[%clk 01:42:35] [%emt 00:00:32]} 6...e5 {[%clk 01:42:46] [%emt 00:00:31]} 
7.Nb3 {[%clk 01:42:58] [%emt 00:00:07]} 7...Be7 {[%clk 01:42:50] [%emt
00:00:26]} 8.h3 {[%clk 01:42:12] [%emt 00:01:16]} 8...Be6 {[%clk 01:42:10] [%emt
00:01:10]} 9.Qf3 {[%clk 01:42:10] [%emt 00:00:31]} 9...Nbd7 {[%clk 01:30:18]
[%emt 00:12:22]} 10.O-O-O {[%clk 01:41:21] [%emt 00:01:19]} 10...Rc8 {[%clk
01:21:09] [%emt 00:09:40]} 11.Nd5 {[%clk 01:40:13] [%emt 00:01:37]} 11...Bxd5 
{[%clk 01:07:03] [%emt 00:14:37]} 12.exd5 {[%clk 01:40:37] [%emt 00:00:05]} 
12...Nb6 {[%clk 01:07:27] [%emt 00:00:06]} 13.g4 {[%clk 01:36:26] [%emt
00:04:41]} 13...e4 {[%clk 01:00:54] [%emt 00:07:04]} 14.Qg2 {[%clk 01:35:21]
[%emt 00:01:35]} 14...Qc7 {[%clk 00:57:27] [%emt 00:03:56]} 15.c3 {[%clk
01:34:18] [%emt 00:01:33]} 15...Nbxd5 {[%clk 00:55:02] [%emt 00:02:55]} 16.Bd2 
{[%clk 01:34:09] [%emt 00:00:39]} 16...e3 {[%clk 00:54:10] [%emt 00:01:22]} 
17.fxe3 {[%clk 01:33:50] [%emt 00:00:48]} 17...Nb6 {[%clk 00:54:35] [%emt
00:00:06]} 18.Bd3 {[%clk 01:15:17] [%emt 00:19:02]} 18...d5 {[%clk 00:53:34]
[%emt 00:01:32]} 19.e4 {[%clk 01:14:26] [%emt 00:01:21]} 19...dxe4 {[%clk
00:46:37] [%emt 00:07:27]} 20.Bxe4 {[%clk 01:11:16] [%emt 00:03:40]} 20...Nxe4 
{[%clk 00:47:02] [%emt 00:00:05]} 21.Qxe4 {[%clk 01:11:43] [%emt 00:00:04]} 
21...O-O {[%clk 00:47:23] [%emt 00:00:08]} 22.Bf4 {[%clk 01:10:00] [%emt
00:02:12]} 22...Qc4 {[%clk 00:47:02] [%emt 00:00:52]} 23.Rd4 {[%clk 01:10:00]
[%emt 00:00:30]} 23...Qc6 {[%clk 00:44:02] [%emt 00:03:30]} 24.Qxc6 {[%clk
01:09:25] [%emt 00:01:05]} 24...bxc6 {[%clk 00:44:19] [%emt 00:00:13]} 25.Re1 
{[%clk 01:07:10] [%emt 00:02:44]} 25...Bf6 {[%clk 00:39:53] [%emt 00:04:56]} 
26.Rde4 {[%clk 01:06:13] [%emt 00:01:28]} 26...Bh4 {[%clk 00:38:52] [%emt
00:01:31]} 27.R1e2 {[%clk 01:02:09] [%emt 00:04:34]} 27...f5 {[%clk 00:38:31]
[%emt 00:00:52]} 28.gxf5 {[%clk 01:02:30] [%emt 00:00:09]} 28...Rxf5 {[%clk
00:38:56] [%emt 00:00:04]} 29.Kc2 {[%clk 00:57:32] [%emt 00:05:28]} 29...Bf6 
{[%clk 00:37:52] [%emt 00:01:34]} 30.Be5 {[%clk 00:44:29] [%emt 00:13:33]} 
30...Re8 {[%clk 00:36:58] [%emt 00:01:24]} 31.Bxf6 {[%clk 00:44:21] [%emt
00:00:38]} 31...Rxe4 {[%clk 00:37:19] [%emt 00:00:09]} 32.Rxe4 {[%clk 00:44:48]
[%emt 00:00:03]} 32...Rf2+ {[%clk 00:37:37] [%emt 00:00:12]} 33.Kd3 {[%clk
00:41:07] [%emt 00:04:11]} 33...gxf6 {[%clk 00:37:53] [%emt 00:00:14]} 34.Nc5 
{[%clk 00:24:31] [%emt 00:17:06]} 34...Rxb2 {[%clk 00:32:26] [%emt 00:05:57]} 
35.Rb4 {[%clk 00:24:32] [%emt 00:00:29]} 35...Rxb4 {[%clk 00:32:47] [%emt
00:00:09]} 36.cxb4 {[%clk 00:24:59] [%emt 00:00:04]} 36...Kf7 {[%clk 00:33:12]
[%emt 00:00:05]} 37.Kd4 {[%clk 00:16:41] [%emt 00:08:48]} 37...Ke7 {[%clk
00:31:17] [%emt 00:02:25]} 38.Nxa6 {[%clk 00:16:24] [%emt 00:00:47]} 38...Kd6 
{[%clk 00:29:06] [%emt 00:02:40]} 39.Nc5 {[%clk 00:16:49] [%emt 00:00:05]} 
39...f5 {[%clk 00:27:38] [%emt 00:01:58]} 40.h4 {[%clk 00:12:47] [%emt
00:04:32]} 40...Nd5 {[%clk 00:19:29] [%emt 00:08:39]} 41.a3 {[%clk 00:11:33]
[%emt 00:01:44]} 41...Kc7 {[%clk 00:48:08] [%emt 00:21:51]} 42.Ke5 {[%clk
00:49:41] [%emt 00:12:22]} 42...f4 {[%clk 00:48:22] [%emt 00:00:17]} 43.Ne6+ 
{[%clk 00:41:31] [%emt 00:08:40]} 43...Kb6 {[%clk 00:48:27] [%emt 00:00:25]} 
44.Nd4 {[%clk 00:40:57] [%emt 00:01:03]} 44...Kc7 {[%clk 00:45:50] [%emt
00:03:08]} 45.h5 {[%clk 00:40:16] [%emt 00:01:11]} 45...Kb6 {[%clk 00:45:12]
[%emt 00:01:07]} 46.b5 {[%clk 00:33:44] [%emt 00:07:02]} 46...f3 {[%clk
00:41:05] [%emt 00:04:37]} 47.Nxf3 {[%clk 00:33:58] [%emt 00:00:16]} 47...Kxb5 
{[%clk 00:41:31] [%emt 00:00:04]} 48.Ng5 {[%clk 00:34:13] [%emt 00:00:15]} 
48...Ne7 {[%clk 00:35:48] [%emt 00:06:13]} 49.Nxh7 {[%clk 00:31:06] [%emt
00:03:38]} 49...c5 {[%emt 00:01:43]} 50.Nf6 {[%clk 00:29:56]} 50...c4 {[%clk
00:36:40] [%emt 00:00:04]} 51.Ne4 {[%clk 00:27:33] [%emt 00:02:53]} 51...Ng8 
{[%clk 00:36:51] [%emt 00:00:18]} 52.Kd4 {[%clk 00:22:02] [%emt 00:06:02]} 
52...Ka4 {[%clk 00:36:36] [%emt 00:00:45]} 53.Kxc4 {[%clk 00:22:27] [%emt
00:00:05]} 53...Kxa3 {[%clk 00:36:47] [%emt 00:00:19]} 54.Kd5 {[%clk 00:21:21]
[%emt 00:01:36]} 1-0